Cogmind - Beta 14 @@@ ROGUE MODE // 2024.10.19 @ 08:22:59 Player: Sacrath Result: Self-destructed Performance ------------- Evolutions (2) 1000 Regions Visited (5) 1000 Robots Destroyed (42) 210 Value Destroyed (1047) 1047 Prototype IDs (4) 80 Alien Tech Used (0) 0 Bonus (200) 200 TOTAL SCORE: 3537 Bonus ------- Entered Garrisons 200 Cogmind --------- Core Integrity 306/550 Matter 216/300 Energy 100/100 System Corruption 0% Temperature Cool (0) Movement Core (50) Location -8/Garrison Parts ------- > --- POWER (2) -------- (None) > --- PROPULSION (3) --- (None) > --- UTILITY (4) ------ Authchip [R/Combat] Authchip [R/Combat] Authchip [R/Combat] Authchip [R/Combat] > --- WEAPON (2) ------- Hammer > --- INVENTORY (5) ---- Light Ion Engine Light Nuclear Core Large Battery (200) Authchip [R/Combat] Light Assault Rifle Peak State ------------ > --- POWER ------------ Light Nuclear Core > --- PROPULSION ------- Wheel Wheel Wheel > --- UTILITY ---------- Hardened Heavy Armor Plating Hardened Heavy Armor Plating > --- WEAPON ----------- Medium Laser Grenade Launcher > --- INVENTORY -------- Light Ion Engine Light Nuclear Core Carbon-fiber Leg Large Battery Light Assault Rifle [Rating: 24] Favorites ----------- Power Light Nuclear Core Engine Light Ion Engine Power Core Light Nuclear Core Propulsion Wheel Treads Light Treads Leg Carbon-fiber Leg Wheel Wheel Flight Unit Flight Unit Utility Terrain Scan Processor Device Improved Terrain Scanner Storage Compact Matter Pod Processor Terrain Scan Processor Hackware Authchip [R/Combat] Protection Hardened Heavy Armor Plating Weapon Medium Laser Energy Gun Medium Laser Launcher Grenade Launcher Impact Weapon Hammer Build | -11 -10 -9 -9 -8 -8 ------- Run | Yrd Mat Mat Min Mat Gar Slots Evolved 4 | . . 2 . 2 . Power 1 | . . . . 1 . Propulsion 1 | . . 1 . . . Utility 2 | . . 1 . 1 . Weapon . | . . . . . . Parts Attached 25 | 5 3 2 7 3 5 Power 2 | 1 . 1 . . . Engine 1 | 1 . . . . . Core 1 | . . 1 . . . Reactor . | . . . . . . Propulsion 8 | 2 2 . 3 . 1 Treads 2 | 2 . . . . . Leg 1 | . . . . . 1 Wheel 3 | . . . 3 . . Hover . | . . . . . . Flight 2 | . 2 . . . . Utility 11 | 1 . 1 3 2 4 Device 2 | . . . 2 . . Storage 2 | 1 . . 1 . . Processor 1 | . . 1 . . . Hackware 4 | . . . . . 4 Protection 2 | . . . . 2 . Artifact . | . . . . . . Weapon 4 | 1 1 . 1 1 . Energy Gun 1 | 1 . . . . . Energy Cannon . | . . . . . . Ballistic Gun . | . . . . . . Ballistic Cannon . | . . . . . . Launcher 2 | . 1 . 1 . . Special Weapon . | . . . . . . Impact Weapon 1 | . . . . 1 . Slashing Weapon . | . . . . . . Piercing Weapon . | . . . . . . Special Melee Weapon . | . . . . . . Unidentified Prototypes . | . . . . . . Parts Lost 8 | . . 1 1 3 3 Power 1 | . . . . 1 . Propulsion 5 | . . 1 . 1 3 Utility . | . . . . . . Weapon 2 | . . . 1 1 . Highest Loss Streak 3 | . . 1 1 3 3 To Critical Strikes . | . . . . . . Average Slot Usage (%) 74 | . 73 59 82 62 56 Engine 3 | . 14 10 . . . Core 6 | . . . 11 6 . Treads 2 | . 19 . . . . Wheel 12 | . . . 16 22 16 Flight 6 | . 5 16 5 . . Device 6 | . . . 11 3 . Storage 4 | . 12 . 4 3 . Processor 8 | . . 9 11 3 . Hackware 1 | . . . . . 22 Energy Gun 10 | . 14 11 11 5 . Launcher 9 | . 5 11 11 5 . Peak Build Rating 24 | 5 6 8 16 24 23 Average Rating 11 | 4 5 6 13 19 16 On Entrance 8 | . 5 5 8 16 19 Naked Turns . | . . . . . . Heaviest Build 50 | 10 13 10 12 50 2 Greatest Support 40 | 40 40 8 30 30 15 Greatest Overweight (x) 4 | . 4 3 3 2 . Average Overweight (x) . | . . . . . . Largest Inventory Capacity 8 | 8 8 5 5 5 5 Average Capacity 5 | 7 7 5 5 5 5 Most Carried 5 | 2 5 5 5 5 5 Average Carried 4 | . 2 5 4 5 4 Final Capacity 8 | 8 5 5 5 5 5 Final Carried 5 | 1 5 5 5 5 5 Class Distribution -------------------- 62% | Mutant 37% | Scavenger-Mutant Dominant Class ---------------- Mutant | -10/Materials Mutant | -9/Materials Scavenger-Mutant | -9/Mines Mutant | -8/Materials Scavenger-Mutant | -8/Garrison Resources | -11 -10 -9 -9 -8 -8 ----------- Run | Yrd Mat Mat Min Mat Gar Matter Collected 645 | 194 82 4 319 46 . Remotely . | . . . . . . Salvage Created 798 | . 153 80 450 115 . Parts 73 | . 14 11 43 5 . Haulers Intercepted . | . . . . . . Recyclers Shooed 1 | . . . 1 . . Parts Field Recycled . | . . . . . . Retrieved Matter . | . . . . . . Parts Self-Destructed . | . . . . . . Prevented . | . . . . . . Kills | -11 -10 -9 -9 -8 -8 ------- Run | Yrd Mat Mat Min Mat Gar Combat Hostiles Destroyed 30 | . 6 5 15 4 . Guns 3 | . 3 . . . . AOE 27 | . 3 5 15 4 . Classes Destroyed 7 | . 3 . 3 1 . Worker 1 | . 1 . . . . Builder 3 | . . . 3 . . Tunneler 7 | . . . 7 . . Recycler 1 | . . . 1 . . Swarmer 6 | . 3 3 . . . Grunt 23 | . 3 2 15 3 . Brawler 1 | . . . . 1 . Best Kill Streak 8 | . 4 3 8 4 . Combat Bots Only 5 | . 3 3 5 4 . Max Kills in Single Turn 3 | . 3 2 3 1 . Gunslinging . | . . . . . . Exploded 3 | . 2 2 3 1 . Melee . | . . . . . . Uniques/NPCs Destroyed . | . . . . . . Combat | -11 -10 -9 -9 -8 -8 -------- Run | Yrd Mat Mat Min Mat Gar Hostile Shots Fired 145 | . 11 8 31 62 33 Missed 48 | . 1 2 16 14 15 Damage Taken 1437 | . 98 104 207 747 281 Core 388 | . 17 55 72 75 169 Absorbed by Shields . | . . . . . . Core Remaining (%) 87 | 100 93 . 68 . . Volleys Fired 58 | . 12 5 33 8 . Largest 2 | . 2 1 1 1 . Hottest 80 | . 80 30 50 30 . Shots Fired 59 | . 13 5 33 8 . Gun 20 | . 11 . 9 . . Cannon . | . . . . . . Launcher 39 | . 2 5 24 8 . Special . | . . . . . . Kinetic . | . . . . . . Thermal 20 | . 11 . 9 . . Explosive 39 | . 2 5 24 8 . Electromagnetic . | . . . . . . Robot Hit Streak 12 | . 3 2 12 . . Robot Miss Streak 3 | . 2 2 3 . . Penetration Max . | . . . . . . Secondary Targets . | . . . . . . Shots Hit Robots 35 | . 8 2 20 4 1 Core Hits 77 | . 10 8 48 11 . Critical Kills . | . . . . . . Critical Parts Destroyed . | . . . . . . Critical Strikes 1 | . . . 1 . . Burn 1 | . . . 1 . . Melee Attacks 6 | . . . . 5 1 Impact 6 | . . . . 5 1 Slashing . | . . . . . . Piercing . | . . . . . . Sneak Attacks . | . . . . . . Combat Hostiles . | . . . . . . Follow-up Attacks . | . . . . . . Damage Inflicted 2745 | . 281 288 1753 393 30 Guns 164 | . 87 . 77 . . Cannons . | . . . . . . Explosions 2480 | . 194 286 1676 324 . Melee 99 | . . . . 69 30 Ramming 2 | . . 2 . . . Kinetic . | . . . . . . Thermal 164 | . 87 . 77 . . Explosive 2480 | . 194 286 1676 324 . Electromagnetic . | . . . . . . Impact 99 | . . . . 69 30 Slashing . | . . . . . . Piercing . | . . . . . . Highest Corruption . | . . . . . . Average Corruption . | . . . . . . Corruption Purged . | . . . . . . Corruption Blocked . | . . . . . . Overload Shots . | . . . . . . Overflow Damage 18 | . . 8 10 . . Projectiles . | . . . . . . Explosions 18 | . . 8 10 . . Melee . | . . . . . . Knockbacks 1 | . . . . . 1 Impact 1 | . . . . . 1 Kinetic . | . . . . . . Secondary . | . . . . . . Self-Inflicted Damage 111 | . . 38 40 33 . Shots 5 | . . 1 2 2 . Rammed 1 | . . 1 . . . Targets Rammed 1 | . . 1 . . . Kicked . | . . . . . . Crushed . | . . . . . . Highest Temperature 322 | . 114 . 40 322 . Average Temperature 139 | . 40 . 15 234 . Received Heat Transfer 618 | . 30 9 93 387 99 Siege Activations . | . . . . . . Robots Corrupted . | . . . . . . Combat Hostiles . | . . . . . . Parts Fried . | . . . . . . Impact Corruptions . | . . . . . . Robots Melted . | . . . . . . Combat Hostiles . | . . . . . . Parts Melted 2 | . . . 2 . . Heat Transferred 555 | . 259 . 296 . . Parts Sabotaged . | . . . . . . Parts Stolen . | . . . . . . Parts Stripped . | . . . . . . Power Chain Reactions . | . . . . . . Alert | -11 -10 -9 -9 -8 -8 ------- Run | Yrd Mat Mat Min Mat Gar Peak Influence 394 | . 163 292 394 357 227 Initial 222 | . . 68 113 153 222 Average 154 | . 44 161 173 270 221 Maximum Alert Level 1 | . . 1 1 1 1 Low Security (%) 65 | 100 100 56 67 37 . Level 1 34 | . . 43 32 62 100 Level 2 . | . . . . . . Level 3 . | . . . . . . Level 4 . | . . . . . . Level 5 . | . . . . . . High Security . | . . . . . . Max Security . | . . . . . . Squads Dispatched 6 | . . 3 1 2 . Investigation 3 | . . 2 . 1 . Extermination . | . . . . . . Reinforcement 2 | . . 1 1 . . Assault . | . . . . . . Garrison 1 | . . . . 1 . Intercept . | . . . . . . Searches Triggered . | . . . . . . Construction Impeded 2 | . . 1 1 . . Haulers Reinforced . | . . . . . . Active Scanning Responses . | . . . . . . Cargo Convoy Interrupts . | . . . . . . Stealth | -11 -10 -9 -9 -8 -8 --------- Run | Yrd Mat Mat Min Mat Gar Distress Signals 2 | . 1 . 1 . . Communications Jammed . | . . . . . . Distress Signals . | . . . . . . Times Spotted 57 | . 8 6 16 7 20 Peak Tracking Total 14 | . 4 3 4 6 14 Tactical Retreats 2 | . . . . 1 1 Traps | -11 -10 -9 -9 -8 -8 ------- Run | Yrd Mat Mat Min Mat Gar Traps Triggered . | . . . . . . Indirectly . | . . . . . . Trap Hack Attempts . | . . . . . . Triggered . | . . . . . . Disarmed . | . . . . . . Reprogrammed . | . . . . . . Reused . | . . . . . . Traps Extracted . | . . . . . . Installed . | . . . . . . Triggered . | . . . . . . Machines | -11 -10 -9 -9 -8 -8 ---------- Run | Yrd Mat Mat Min Mat Gar Machines Disabled 2 | . . 1 . 1 . Max in Single Turn 1 | . . 1 . 1 . Machines Repaired . | . . . . . . Machines Dismantled . | . . . . . . Machines Sabotaged . | . . . . . . Overloaded Fab Kills . | . . . . . . Hacking | -11 -10 -9 -9 -8 -8 --------- Run | Yrd Mat Mat Min Mat Gar Machines Accessed 7 | . 1 3 . 3 . Terminals 4 | . 1 2 . 1 . Fabricators . | . . . . . . Repair Stations . | . . . . . . Recycling Units . | . . . . . . Scanalyzers 2 | . . 1 . 1 . Garrison Access 1 | . . . . 1 . Total Hacks 14 | . 2 7 . 5 . Successful 9 | . 1 4 . 4 . Failed 5 | . 1 3 . 1 . Catastrophic 1 | . . 1 . . . Database Lockouts . | . . . . . . Manual 2 | . . 1 . 1 . Terminals 9 | . 2 6 . 1 . Fabricators . | . . . . . . Repair Stations . | . . . . . . Recycling Units . | . . . . . . Scanalyzers 2 | . . 1 . 1 . Garrison Access 3 | . . . . 3 . Terminal Hacks 5 | . 1 3 . 1 . Prototype ID Bank 2 | . 1 1 . . . Alert Level 1 | . . . . 1 . Security Status 1 | . . 1 . . . Recall Investigation 1 | . . 1 . . . Fabricator Hacks . | . . . . . . Repair Station Hacks . | . . . . . . Recycling Unit Hacks . | . . . . . . Scanalyzer . | . . . . . . Garrison Access Hacks 2 | . . . . 2 . Unlock Access 1 | . . . . 1 . Coupler Status 1 | . . . . 1 . Unauthorized Hacks 2 | . . 1 . 1 . Terminals . | . . . . . . Fabricators . | . . . . . . Repair Stations . | . . . . . . Recycling Units . | . . . . . . Scanalyzers 2 | . . 1 . 1 . Extract 2 | . . 1 . 1 . Garrison Access . | . . . . . . Data Cores Recovered . | . . . . . . Used . | . . . . . . Hacking Detections 2 | . . 2 . . . Full Trace Events 1 | . . 1 . . . Feedback Events . | . . . . . . Feedback Blocked . | . . . . . . Robot Schematics Acquired . | . . . . . . Robots Built . | . . . . . . Authchips . | . . . . . . Time . | . . . . . . Total Robot Build Rating . | . . . . . . Part Schematics Acquired 5 | . . 3 . 2 . Parts Built . | . . . . . . Authchips . | . . . . . . Time . | . . . . . . Total Part Build Rating . | . . . . . . Parts Repaired . | . . . . . . Time . | . . . . . . Parts Recycled . | . . . . . . Recycled Matter . | . . . . . . Retrieved Matter . | . . . . . . Retrieved Components . | . . . . . . Parts Scanalyzed . | . . . . . . Part Schematics Acquired . | . . . . . . Parts Damaged . | . . . . . . Bothacking | -11 -10 -9 -9 -8 -8 ------------ Run | Yrd Mat Mat Min Mat Gar Used RIF Installer . | . . . . . . Robots Hacked . | . . . . . . Non-combat . | . . . . . . Combat . | . . . . . . Robot Hacks Applied . | . . . . . . Relay Couplers Released . | . . . . . . Fabnet Peak Effective % . | . . . . . . Robots Rewired . | . . . . . . Allies Hacked . | . . . . . . Hacks Repelled . | . . . . . . Allies | -11 -10 -9 -9 -8 -8 -------- Run | Yrd Mat Mat Min Mat Gar Total Allies . | . . . . . . Largest Group . | . . . . . . Highest-Rated Group . | . . . . . . Highest-Rated Ally . | . . . . . . Total Orders . | . . . . . . Ally Attacks . | . . . . . . Total Damage . | . . . . . . Kills . | . . . . . . Allies Corrupted . | . . . . . . Allies Melted . | . . . . . . Intel | -11 -10 -9 -9 -8 -8 ------- Run | Yrd Mat Mat Min Mat Gar Robot Analysis Total . | . . . . . . Derelict Logs Recovered 2 | . . . 2 . . Drone Launches . | . . . . . . Drone Recoveries . | . . . . . . Exploration | -11 -10 -9 -9 -8 -8 ------------- Run | Yrd Mat Mat Min Mat Gar Turns Passed 1416 | 78 190 206 763 89 90 Spaces Moved 919 | 44 141 166 445 56 67 Core 120 | 2 2 55 57 . 4 Treads 117 | 42 75 . . . . Legs 63 | . . . . . 63 Wheels 444 | . . . 388 56 . Hover . | . . . . . . Flight 175 | . 64 111 . . . Fastest Speed 37 | 50 37 37 80 80 50 Average Speed 98 | 155 108 75 95 92 115 Slowest Speed 280 | 160 280 200 200 110 120 Overloaded Moves . | . . . . . . Propulsion Burnouts . | . . . . . . Robots Hopped 1 | . . 1 . . . Cave-ins Triggered . | . . . . . . Exploration Rate (%) 26 | 4 33 18 72 8 25 Regions Visited 5 Branch Regions 1 Pre-discovered Areas . | . . . . . . Known Exits Taken 1 | . . . . 1 . Unknown Exits Taken 4 | 1 1 1 1 . . Scrap Searched 1 | . . . 1 . . Spaces Dug 4 | . . . 4 . . Terrain Destroyed 201 | . 16 28 119 38 . Melee . | . . . . . . Projectile . | . . . . . . AOE 201 | . 16 28 119 38 . Terrain Rammed . | . . . . . . Walls Destroyed . | . . . . . . Machines Disabled . | . . . . . . Actions | -11 -10 -9 -9 -8 -8 --------- Run | Yrd Mat Mat Min Mat Gar Total 1359 | 54 165 240 748 76 76 Wait 326 | . . 67 259 . . Move 913 | 43 140 163 444 56 67 Hop 1 | . . 1 . . . Pick Up 16 | 6 7 . 2 . 1 Fast Attach 14 | . . 1 6 3 4 Attach 10 | 5 3 . 1 . 1 Detach . | . . . . . . Swap 1 | . . 1 . . . Drop 13 | . 3 1 3 4 2 Fire 58 | . 12 5 33 8 . Melee 6 | . . . . 5 1 Ram 1 | . . 1 . . . Kick . | . . . . . . Crush . | . . . . . . Escape Stasis . | . . . . . . Rewire . | . . . . . . Trap . | . . . . . . Miscellaneous . | . . . . . . Route ------- -11/Scrapyard -10/Materials -9/Materials -9/Mines -8/Materials -8/Garrison History --------- Turn | Location | Event 8 | -11/Scrapyard | Discovered new exit (range 15) 79 | -11/Scrapyard | Entered Materials 261 | -10/Materials | Discovered new exit (range 16) 269 | -10/Materials | Entered another Materials area 269 | -9/Materials | Evolved 2 slots: Propulsion x1, Utility x1 309 | -9/Materials | Build established: Mutant 447 | -9/Materials | Discovered new exit (range 15) 475 | -9/Materials | Entered Mines 476 | -9/Mines | Met a Derelict bent on vengeance 531 | -9/Mines | Excavation squad dispatched 531 | -9/Mines | A large section of the Mines collapsed 781 | -9/Mines | Excavation squad dispatched 878 | -9/Mines | Learned Materials emergency access door positions 890 | -9/Mines | Learned Materials terminal intel 1031 | -9/Mines | Excavation squad dispatched 1123 | -9/Mines | Build established: Scavenger-Mutant 1231 | -9/Mines | Discovered new exit (range 8) 1238 | -9/Mines | Entered Materials 1238 | -8/Materials | Evolved 2 slots: Power x1, Utility x1 1240 | -8/Materials | Loaded intel: 12 terminal locations 1271 | -8/Materials | Garrison activated, responded to threat 1324 | -8/Materials | Lost 3 parts (1p1n1w) 1327 | -8/Materials | Identified exit to Garrison 1327 | -8/Materials | Entered Garrison 1405 | -8/Garrison | Triggered checkpoint 1417 | -8/Garrison | Self-destructed Last Messages --------------- EXIT=UNLOCKED: GARRISON LOCATION=GARRISON GOAL=ESCAPE Dropped Hrd. Heavy Armor Plating. Acquired Authchip [R/Combat]. ALERT: Dispatching investigation squad to Materials. Beams of light sweep through the air. An alarm sounds. Wheel destroyed. Critical hit (Burn: +37). Penetrated by Slug. Wheel destroyed. Carbon-fiber Leg destroyed. C-17 Slicer knocked back. Slug penetrates Wall. C-30 ARC bursts open, deploying its payload. L-31 Rogue unfolds itself. G-47 Trooper unfolds itself. Slug penetrates Wall. Map ----- +----------------------------------------------------+ | ?????????????????# #????????????????????????????? | | ???????????####### ###########??????????????????? | | ???????????# #??????????????????? | | ???????????# ##### #??????????????????? | | ?????????????????# ######## #??????????????????? | | ?????????????????# #??????? #??????????????????? | | ?????????????????# #??????? #??????????????????? | | ?????????????????# #??????? #??????????????????? | | ?????????????????# #??????? #??????????????????? | | ?????????????????# #??????? #??????????????????? | | ?????????????????# #??????? #??????????????????? | | ?????????????????# #?????## ##""""######???????? | | ?????????????????# ####### ???????? | | ?????????????????# ???????? | | ?????????????????# ???????? | | ?????????????????########## ## ##?? ????????? | | ????????????????????????### ##^ ## #???????? | | ????????????????????????# gg "???????? | | ????????????????????????# "???????? | | ????????????????????????# "???????? | | ????????????????????????# "???????? | | ????????????????????????### ## ## #???????? | | ????????????????###########g ## ## #???????? | | ????????????????# c gg ??????? | | ????????????????# c l ??????? | | ????????????????# c@ ??????? | | ????????????????# ############""""######???????? | | ????????????????#????????????????????????????????? | | ?????????????????????????????????????????????????? | | ?????????????????????????????????????????????????? | | ?????????????????????????????????????????????????? | | ?????????????????????????????????????????????????? | | ?????????????????????????????????????????????????? | | ?????????????????????????????????????????????????? | | ?????????????????????????????????????????????????? | | ?????????????????????????????????????????????????? | | ?????????????????????????????????????????????????? | | ?????????????????????????????????????????????????? | | ?????????????????????????????????????????????????? | | ?????????????????????????????????????????????????? | | ?????????????????????????????????????????????????? | | ?????????????????????????????????????????????????? | | ?????????????????????????????????????????????????? | | ?????????????????????????????????????????????????? | | ?????????????????????????????????????????????????? | | ?????????????????????????????????????????????????? | | ?????????????????????????????????????????????????? | | ?????????????????????????????????????????????????? | | ?????????????????????????????????????????????????? | | ?????????????????????????????????????????????????? | +----------------------------------------------------+ Best States ------------- Heat Dissipation 31 Energy Generation 14 Energy Capacity 160 Matter Stores 450 Matter Capacity 450 Sight Range 16 Terrain Scan Range 16 Terrain Scan Density 85 Armor Coverage 1200 Evasion (%) 62 Recoil Reduction 2 Authchip Count 5 Item Schematics ----------------- Lgt. EM Pulse Cannon | -9/Materials | Extracted Med. Matter Pod | -9/Materials | Extracted Imp. Ion Engine | -9/Materials | Extracted Lgt. Deuterium Engine | -8/Materials | Extracted Carbon-fiber Leg | -8/Materials | Extracted Robot Schematics ------------------ None Fabricated ------------ Nothing Alien Tech Used ----------------- None Achievements -------------- None Challenges ------------ None Game ------ Seed MiniSubatomicFirepult Manual? 0 Play Time 00:13:57 Cumulative 36.5 hours Start 2024.10.19 @ 01:08:31 End 2024.10.19 @ 08:22:59 Sessions 3 Manual Loads 0 Difficulty Rogue Special Mode None Game No. 57 Rogue 8 Adventurer 49 Explorer 0 Win Type - Total 2 Types 2/0/0/0/0/0/0/0/0 Lore% 15 Gallery% 42 Achievement% 37 Wizard Run 0 Options --------- Layout 1 ASCII 0 Keyboard 0 Movement Mouse Keybinds 0 Fullscreen 1 Font 24/Smallcaps Map View 50x35 Zoom Use 0% Tactical HUD 0 Map Filters NONE Filters NONE Steam 1 RUN: 8b6ae6f7-772f-4ce3-bb99-4c94567085ec